fUSD/lending_fUSD_20240119
["ID","MTS","AMOUNT","RATE_DAILY","PERIOD"]
[312151524,1705669890356,-500.0,0.00023287,2]
[312151525,1705669890370,-1676.68,0.00023287,2]
[312151526,1705669890383,-500.0,0.00023287,2]
[312151527,1705669890396,-722.53,0.00023287,2]
[312151528,1705669890409,-528.2,0.00023287,2]
[312151529,1705669890422,-500.0,0.00023287,2]
[312151530,1705669890435,-1258.05,0.00023287,2]
[312151531,1705669890447,-500.0,0.00023287,2]
[312151532,1705669890460,-536.55,0.00023287,2]
[312151533,1705669890472,-591.46,0.00023287,2]
[312151534,1705669890485,-1526.19,0.00023287,2]
[312151535,1705669890498,-1185.94,0.00023287,2]
[312151536,1705669890511,-3581.47,0.00023287,2]
[312151537,1705669890524,-500.0,0.00023287,2]
[312151538,1705669890536,-12146.1,0.00023287,2]
[312151539,1705669890549,-2612.2,0.00023287,2]
[312151540,1705669890562,-1237.18,0.00023287,2]
[312151541,1705669890575,-1056.03,0.00023287,2]
[312151542,1705669890587,-858.97,0.00023287,2]
[312151543,1705669890601,-656.1,0.00023287,2]
[312151544,1705669890614,-2469.05,0.00023287,2]
[312151545,1705669890627,-500.0,0.00023287,2]
[312151546,1705669890640,-9252.78,0.00023287,2]
[312151547,1705669890653,-602.84,0.00023287,2]
[312151548,1705669890666,-500.0,0.00023287,2]
[312151549,1705669890679,-15248.18,0.00023287,2]
[312151550,1705669890698,-2574.37,0.00023287,2]
[312151551,1705669890711,-244.35030773,0.00023287,2]
[312151552,1705669890723,-767.02,0.00023287,2]
[312151553,1705669890735,-577.79,0.00023287,2]
[312151554,1705669890748,-543.58,0.00023287,2]
[312151555,1705669890761,-1439.62,0.00023287,2]
[312151556,1705669890774,-1848.98,0.00023287,2]
[312151557,1705669890786,-1228.0,0.00023287,2]
[312151558,1705669890799,-8551.06,0.00023287,2]
[312151559,1705669890811,-2267.31,0.00023287,2]
[312151560,1705669890824,-335.59,0.00023287,2]
[312151561,1705669890837,-574.86,0.00023287,2]
[312151562,1705669890849,-3257.42,0.00023287,2]
[312151563,1705669890862,-894.19,0.00023287,2]
[312151564,1705669890876,-500.0,0.00023287,2]
[312151565,1705669890888,-585.55,0.00023287,2]
[312151566,1705669890906,-2231.87,0.00023287,2]
[312151567,1705669890918,-5684.2,0.00023287,2]
[312151568,1705669890931,-1414.02,0.00023287,2]
[312151569,1705669890944,-939.86,0.00023287,2]
[312151570,1705669890956,-500.0,0.00023287,2]
[312151571,1705669890969,-580.2,0.00023287,2]
[312151572,1705669890980,-500.0,0.00023287,2]
[312151573,1705669890992,-2102.76,0.00023287,2]
[312151574,1705669891004,-240.30404212,0.00023287,2]
[312151575,1705669891017,-500.0,0.00023287,2]
[312151576,1705669891030,-4658.46,0.00023287,2]
[312151577,1705669891044,-1984.44,0.00023287,2]
[312151578,1705669891057,-2207.47,0.00023287,2]
[312151579,1705669891069,-500.0,0.00023287,2]
[312151580,1705669891081,-3439.18,0.00023287,2]
[312151581,1705669891093,-1931.43,0.00023287,2]
[312151582,1705669891106,-500.0,0.00023287,2]
[312151583,1705669891119,-639.82,0.00023287,2]
[312151584,1705669891133,-500.0,0.00023287,2]
[312151585,1705669891146,-1100.23,0.00023287,2]
[312151586,1705669891159,-500.0,0.00023287,2]
[312151587,1705669891172,-644.68,0.00023287,2]
[312151588,1705669891185,-500.0,0.00023287,2]
[312151589,1705669891198,-500.0,0.00023287,2]
[312151590,1705669891211,-500.0,0.00023287,2]
[312151591,1705669891223,-759.77,0.00023287,2]
[312151592,1705669891236,-1956.81,0.00023287,2]
[312151593,1705669891248,-500.0,0.00023287,2]
[312151594,1705669891261,-534.94,0.00023287,2]
[312151595,1705669891274,-986.14,0.00023287,2]
[312151596,1705669891287,-686.98,0.00023287,2]
[312151597,1705669891299,-549.98,0.00023287,2]
[312151598,1705669891313,-916.9,0.00023287,2]
[312151599,1705669891325,-869.67,0.00023287,2]
[312151600,1705669891337,-7071.93,0.00023287,2]
[312151601,1705669891349,-2963.64,0.00023287,2]
[312151602,1705669891362,-1215.68,0.00023287,2]
[312151603,1705669891375,-1525.76,0.00023287,2]
[312151604,1705669891388,-621.36,0.00023287,2]
[312151605,1705669891401,-372.04285967,0.00023287,2]
[312151606,1705669891415,-500.0,0.00023287,2]
[312151607,1705669891429,-2140.94,0.00023287,2]
[312151608,1705669891442,-710.71,0.00023287,2]
[312151609,1705669891455,-842.67,0.00023287,2]
[312151610,1705669891470,-549.3,0.00023287,2]
[312151611,1705669891483,-4445.96,0.00023287,2]
[312151612,1705669891504,-178.53329419,0.00023287,2]
[312151613,1705669891518,-4442.84,0.00023287,2]
[312151614,1705669891533,-3252.64,0.00023287,2]
[312151615,1705669891546,-9432.03,0.00023287,2]
[312151616,1705669891560,-1494.52,0.00023287,2]
[312151617,1705669891573,-431.55,0.00023287,2]
[312151618,1705669891587,-2305.27,0.00023287,2]
[312151619,1705669891601,-1994.22,0.00023287,2]
[312151620,1705669891616,-785.42,0.00023287,2]
[312151621,1705669891629,-544.14,0.00023287,2]
[312151622,1705669891642,-15331.08,0.00023287,2]
[312151623,1705669891656,-37740.3,0.00023287,2]
[312151624,1705669891669,-575.23,0.00023287,2]
[312151625,1705669891683,-3240.46,0.00023287,2]
[312151626,1705669891696,-500.0,0.00023287,2]
[312151627,1705669891709,-664.75,0.00023287,2]
[312151628,1705669891723,-500.0,0.00023287,2]
[312151629,1705669891736,-500.0,0.00023287,2]
[312151630,1705669891750,-500.0,0.00023287,2]
[312151631,1705669891763,-500.0,0.00023287,2]
[312151632,1705669891776,-500.0,0.00023287,2]
[312151633,1705669891793,-1196.75,0.00023287,2]
[312151634,1705669891809,-500.0,0.00023287,2]
[312151635,1705669891823,-1846.5,0.00023287,2]
[312151636,1705669891837,-665.6,0.00023287,2]
[312151637,1705669891849,-2652.58,0.00023287,2]
[312151638,1705669891862,-2233.52,0.00023287,2]
[312151639,1705669891877,-538.09,0.00023287,2]
[312151640,1705669891891,-500.0,0.00023287,2]
[312151641,1705669891904,-808.35,0.00023287,2]
[312151642,1705669891920,-1124.95,0.00023287,2]
[312151643,1705669891933,-573.95,0.00023287,2]
[312151644,1705669891947,-3944.13,0.00023287,2]
[312151645,1705669891960,-1635.99,0.00023287,2]
[312151646,1705669891974,-750.32,0.00023287,2]
[312151647,1705669891987,-1281.81,0.00023287,2]
[312151648,1705669892001,-4547.59,0.00023287,2]
[312151649,1705669892015,-500.0,0.00023287,2]
[312151650,1705669892028,-8425.91,0.00023287,2]
[312151651,1705669892042,-500.0,0.00023287,2]
[312151652,1705669892054,-506.59,0.00023287,2]
[312151653,1705669892069,-754.61,0.00023287,2]
[312151654,1705669892082,-1705.42,0.00023287,2]
[312151655,1705669892095,-591.74,0.00023287,2]
[312151656,1705669892109,-780.91,0.00023287,2]
[312151657,1705669892122,-574.32,0.00023287,2]
[312151658,1705669892136,-1313.23,0.00023287,2]
[312151659,1705669892150,-2028.69,0.00023287,2]
[312151660,1705669892164,-500.0,0.00023287,2]
[312151661,1705669892177,-500.0,0.00023287,2]
[312151662,1705669892190,-633.91,0.00023287,2]
[312151663,1705669892203,-500.0,0.00023287,2]
[312151664,1705669892217,-9076.22,0.00023287,2]
[312151665,1705669892230,-924.14,0.00023287,2]
[312151666,1705669892243,-526.59,0.00023287,2]
[312151667,1705669892256,-2029.72,0.00023287,2]
[312151668,1705669892270,-500.0,0.00023287,2]
[312151669,1705669892283,-500.0,0.00023287,2]
[312151670,1705669892297,-826.71,0.00023287,2]
[312151671,1705669892310,-981.27,0.00023287,2]
[312151672,1705669892323,-1960.9,0.00023287,2]
[312151673,1705669892337,-500.0,0.00023287,2]
[312151674,1705669892350,-4783.55,0.00023287,2]
[312151675,1705669892364,-835.31,0.00023287,2]
[312151676,1705669892377,-5207.41,0.00023287,2]
[312151677,1705669892390,-1577.31,0.00023287,2]
[312151678,1705669892403,-500.0,0.00023287,2]
[312151679,1705669892417,-3855.72,0.00023287,2]
[312151680,1705669892431,-523.45980315,0.00023287,2]
[312151681,1705669892445,-1179.28,0.00023287,2]
[312151682,1705669892459,-685.58,0.00023287,2]
[312151683,1705669892472,-793.67,0.00023287,2]
[312151684,1705669892486,-813.09,0.00023287,2]
[312151685,1705669892499,-583.17,0.00023287,2]
[312151686,1705669892513,-2276.82,0.00023287,2]
[312151687,1705669892526,-3177.97,0.00023287,2]
[312151688,1705669892539,-3710.39,0.00023287,2]
[312151689,1705669892553,-500.0,0.00023287,2]
[312151690,1705669892566,-500.0,0.00023287,2]
[312151691,1705669892580,-660.03,0.00023287,2]
[312151692,1705669892594,-550.62,0.00023287,2]
[312151693,1705669892607,-2628.92,0.00023287,2]
[312151694,1705669892622,-500.0,0.00023287,2]
[312151695,1705669892636,-638.69,0.00023287,2]
[312151696,1705669892649,-1034.13,0.00023287,2]
[312151697,1705669892663,-2000.88,0.00023287,2]
[312151698,1705669892677,-19369.32,0.00023287,2]
[312151699,1705669892690,-2148.61,0.00023287,2]
[312151700,1705669892703,-500.0,0.00023287,2]
[312151701,1705669892717,-25482.51,0.00023287,2]
[312151702,1705669892731,-1717.53,0.00023287,2]
[312151703,1705669892744,-500.0,0.00023287,2]
[312151704,1705669892757,-500.0,0.00023287,2]
[312151705,1705669892771,-1264.98,0.00023287,2]
[312151706,1705669892785,-500.0,0.00023287,2]
[312151707,1705669892804,-746.64,0.00023287,2]
[312151708,1705669892818,-500.0,0.00023287,2]
[312151709,1705669892832,-1739.34,0.00023287,2]
[312151710,1705669892845,-1153.95,0.00023287,2]
[312151711,1705669892858,-500.0,0.00023287,2]
[312151712,1705669892872,-1444.66,0.00023287,2]
[312151713,1705669892885,-4305.99,0.00023287,2]
[312151714,1705669892897,-721.93,0.00023287,2]
[312151715,1705669892911,-1568.86,0.00023287,2]
[312151716,1705669892925,-1301.31,0.00023287,2]
[312151717,1705669892939,-500.0,0.00023287,2]
[312151718,1705669892952,-1193.88,0.00023287,2]
[312151719,1705669892965,-855.93,0.00023287,2]
[312151720,1705669892979,-1184.09,0.00023287,2]
[312151721,1705669892992,-1441.39,0.00023287,2]
[312151722,1705669893006,-2315.09,0.00023287,2]
[312151723,1705669893019,-2117.61,0.00023287,2]
[312151724,1705669893033,-980.44,0.00023287,2]
[312151725,1705669893047,-2124.5,0.00023287,2]
[312151726,1705669893060,-3846.66,0.00023287,2]
[312151727,1705669893073,-1637.31,0.00023287,2]
[312151728,1705669893086,-513.8,0.00023287,2]
[312151729,1705669893099,-757.52,0.00023287,2]
[312151730,1705669893112,-500.0,0.00023287,2]
[312151731,1705669893126,-500.0,0.00023287,2]
[312151732,1705669893138,-883.7,0.00023287,2]
[312151733,1705669893151,-1482.25,0.00023287,2]
[312151734,1705669893164,-2977.49,0.00023287,2]
[312151735,1705669893178,-2766.49,0.00023287,2]
[312151736,1705669893191,-1781.63,0.00023287,2]
[312151737,1705669893205,-500.0,0.00023287,2]
[312151738,1705669893218,-660.55,0.00023287,2]
[312151739,1705669893231,-661.91,0.00023287,2]
[312151740,1705669893245,-537.32,0.00023287,2]
[312151741,1705669893790,-567.18,0.00023287,2]
[312151742,1705669893828,-500.0,0.00023287,2]
[312151743,1705669893872,-500.0,0.00023287,2]
[312151744,1705669893883,-761.41,0.00023287,2]
[312151745,1705669893895,-857.58,0.00023287,2]
[312151746,1705669893906,-1153.39,0.00023287,2]
[312151747,1705669893916,-649.92,0.00023287,2]
[312151748,1705669893926,-8804.12,0.00023287,2]
[312151749,1705669893937,-4399.62,0.00023287,2]
[312151750,1705669893948,-2418.64,0.00023287,2]
[312151751,1705669893958,-1464.05,0.00023287,2]
[312151752,1705669893968,-664.67,0.00023287,2]
[312151753,1705669893978,-904.22,0.00023287,2]
[312151754,1705669893989,-500.0,0.00023287,2]
[312151755,1705669894000,-2042.08,0.00023287,2]
[312151756,1705669894011,-4233.95,0.00023287,2]
[312151757,1705669894022,-1340.55,0.00023287,2]
[312151758,1705669894033,-1033.87,0.00023287,2]
[312151759,1705669894044,-1827.3,0.00023287,2]
[312151760,1705669894057,-500.0,0.00023287,2]
[312151761,1705669894068,-1837.39,0.00023287,2]
[312151762,1705669894079,-760.36,0.00023287,2]
[312151763,1705669894090,-1378.23,0.00023287,2]
[312151764,1705669894101,-500.0,0.00023287,2]
[312151765,1705669894111,-2761.46,0.00023287,2]
[312151766,1705669894122,-938.71,0.00023287,2]
[312151767,1705669894134,-1091.57,0.00023287,2]
[312151768,1705669894145,-1397.44,0.00023287,2]
[312151769,1705669894155,-500.0,0.00023287,2]
[312151770,1705669894166,-500.0,0.00023287,2]
[312151771,1705669894176,-2230.55,0.00023287,2]
[312151772,1705669894187,-2441.81,0.00023287,2]
[312151773,1705669894197,-500.0,0.00023287,2]
[312151774,1705669894208,-500.0,0.00023287,2]
[312151775,1705669894218,-4496.97,0.00023287,2]
[312151776,1705669894228,-500.0,0.00023287,2]
[312151777,1705669894238,-915.54,0.00023287,2]
[312151778,1705669894249,-1052.49,0.00023287,2]
[312151779,1705669894260,-500.0,0.00023287,2]
[312151780,1705669894270,-999.66,0.00023287,2]
[312151781,1705669894280,-1236.9,0.00023287,2]
[312151782,1705669894290,-7568.94,0.00023287,2]
[312151783,1705669894300,-1813.55,0.00023287,2]
[312151784,1705669894310,-1397.72,0.00023287,2]
[312151785,1705669894320,-500.0,0.00023287,2]
[312151786,1705669894331,-500.0,0.00023287,2]
[312151787,1705669894341,-715.61,0.00023287,2]
[312151788,1705669894351,-1145.22,0.00023287,2]
[312151789,1705669894362,-735.86,0.00023287,2]
[312151790,1705669894373,-426.98474657,0.00023288,2]
[312151791,1705669894383,-533.53596072,0.00023288,2]
[312151792,1705669894394,-500.0,0.00023288,2]
[312151793,1705669894404,-533.53596072,0.00023288,2]
[312151794,1705669894415,-533.53596072,0.00023288,2]
[312151795,1705669894425,-500.0,0.00023288,2]
[312151796,1705669894437,-533.53596072,0.00023288,2]
[312151797,1705669894447,-444.56103589,0.00023288,2]
[312151798,1705669894458,-533.53596072,0.00023288,2]
[312151799,1705669894468,-533.53596072,0.00023288,2]
[312151800,1705669894479,-533.53596072,0.00023288,2]
[312151801,1705669894489,-533.53596072,0.00023288,2]
[312151802,1705669894500,-533.53596072,0.00023288,2]
[312151803,1705669894511,-533.53596072,0.00023288,2]
[312151804,1705669894521,-533.53596072,0.00023288,2]
[312151805,1705669894531,-533.53596072,0.00023288,2]
[312151806,1705669894542,-533.53596072,0.00023288,2]
[312151807,1705669894552,-533.53596072,0.00023288,2]
[312151808,1705669894562,-533.53596072,0.00023288,2]
[312151809,1705669894573,-533.53596072,0.00023288,2]
[312151810,1705669894583,-533.53596072,0.00023288,2]
[312151811,1705669894594,-533.53596072,0.00023288,2]
[312151812,1705669894604,-533.53596072,0.00023288,2]
[312151813,1705669894614,-533.53596072,0.00023288,2]
[312151814,1705669894626,-533.53596072,0.00023288,2]
[312151815,1705669894636,-533.53596072,0.00023288,2]
[312151816,1705669894647,-533.53596072,0.00023288,2]
[312151817,1705669894657,-533.53596072,0.00023288,2]
[312151818,1705669894667,-533.53596072,0.00023288,2]
[312151819,1705669894678,-533.53596072,0.00023288,2]
[312151820,1705669894688,-533.53596072,0.00023288,2]
[312151821,1705669894698,-533.53596072,0.00023288,2]
[312151822,1705669894709,-533.53596072,0.00023288,2]
[312151823,1705669894719,-533.53596072,0.00023288,2]
[312151824,1705669894729,-533.53596072,0.00023288,2]
[312151825,1705669894739,-533.53596072,0.00023288,2]
[312151826,1705669894750,-533.53596072,0.00023288,2]
[312151827,1705669894760,-170.79389862,0.00023288,2]
[312151828,1705669894771,-1360.56080048,0.00023288,2]
[312151829,1705669894780,-1360.56080048,0.00023288,2]
[312151830,1705669894792,-1360.56080048,0.00023288,2]
[312151831,1705669894802,-1360.56080048,0.00023288,2]
[312151832,1705669894813,-1360.56080048,0.00023288,2]
[312151833,1705669894823,-1360.56080048,0.00023288,2]
[312151834,1705669894834,-1360.56080048,0.00023288,2]
[312151835,1705669894844,-1360.56080048,0.00023288,2]
[312151836,1705669894855,-395.34411544,0.00023288,4]
[312151837,1705669894867,-500.0,0.00023288,4]
[312151838,1705669894880,-163.52758215,0.00023288,4]
[312151839,1705669894890,-500.0,0.00023288,4]
[312151840,1705669894900,-500.0,0.00023288,4]
[312151841,1705669894911,-500.0,0.00023288,4]
[312151842,1705669894922,-500.0,0.00023288,4]
[312151843,1705669894932,-649.67271778,0.00023288,4]
[312151844,1705669894942,-500.0,0.00023288,4]
[312151845,1705669894953,-443.26587882,0.00023288,4]
[312151846,1705669894964,-500.0,0.00023288,4]
[312151847,1705669894974,-616.43704074,0.00023288,4]
[312151848,1705669894985,-500.0,0.00023288,4]
[312151849,1705669894995,-500.0,0.00023288,4]
[312151850,1705669895005,-500.0,0.00023288,4]
[312151851,1705669895015,-500.0,0.00023288,4]
[312151852,1705669895026,-500.0,0.00023288,4]
[312151853,1705669895037,-402.38545122,0.00023288,4]
[312151854,1705669895048,-221.6329394,0.00023288,4]
[312151855,1705669895059,-171.83557906,0.00023288,2]
[312151856,1705669895069,-400.94968448,0.00023288,2]
[312151857,1705669895080,-151.0,0.00023288,7]
[312151858,1705669895091,-206.47,0.0002329,2]
[312151859,1705669895101,-206.0,0.0002329,2]
[312151860,1705669895112,-1478.03438221,0.00023359,2]
[312151861,1705669895124,-157.0,0.00023361,2]
[312151862,1705669895135,-3637.81230197,0.00023466,2]
[312151863,1705669895146,-1022.48,0.0002347,2]
[312151864,1705669895157,-1097.34,0.00023471,2]
[312151865,1705669895167,-1688.0,0.00023486,2]
[312151866,1705669895183,-250.0,0.000235,2]
[312151867,1705669895194,-206.47,0.0002351,2]
[312151868,1705669895206,-153.05,0.0002351,2]
[312151869,1705669895218,-500.0,0.00023513,2]
[312151870,1705669895229,-1117.22,0.00023513,2]
[312151871,1705669895240,-500.0,0.00023514,2]
[312151872,1705669895251,-1117.22,0.00023514,2]
[312151873,1705669895262,-1793.21,0.00023514,2]
[312151874,1705669895273,-1305.51,0.00023514,2]
[312151875,1705669895284,-998.25,0.00023514,2]
[312151876,1705669895295,-776.9,0.00023514,2]
[312151877,1705669895306,-784.93,0.00023514,2]
[312151878,1705669895317,-544.79,0.00023514,2]
[312151879,1705669895328,-940.43,0.00023514,2]
[312151880,1705669895339,-500.0,0.00023514,2]
[312151881,1705669895350,-952.59,0.00023514,2]
[312151882,1705669895362,-500.68,0.00023514,2]
[312151883,1705669895373,-729.01,0.00023514,2]
[312151884,1705669895385,-500.0,0.00023514,2]
[312151885,1705669895396,-570.65,0.00023514,2]
[312151886,1705669895407,-1138.38,0.00023514,2]
[312151887,1705669895418,-1506.44,0.00023514,2]
[312151888,1705669895429,-850.36,0.00023514,2]
[312151889,1705669895440,-1199.42,0.00023514,2]
[312151890,1705669895451,-1703.39,0.00023514,2]
[312151891,1705669895462,-1197.96,0.00023514,2]
[312151892,1705669895474,-500.0,0.00023514,2]
[312151893,1705669895485,-678.77,0.00023514,2]
[312151894,1705669895496,-583.35,0.00023514,2]
[312151895,1705669895507,-894.82,0.00023514,2]
[312151896,1705669895519,-858.01,0.00023514,2]
[312151897,1705669895531,-691.38,0.00023514,2]
[312151898,1705669895542,-971.8,0.00023514,2]
[312151899,1705669895555,-798.78,0.00023514,2]
[312151900,1705669895566,-966.67,0.00023514,2]
[312151901,1705669895577,-500.0,0.00023514,2]
[312151902,1705669895589,-1108.5,0.00023514,2]
[312151903,1705669895600,-301.35776958,0.00023514,2]
[312151904,1705669895611,-952.64,0.00023514,2]
[312151905,1705669895623,-500.0,0.00023514,2]
[312151906,1705669895634,-920.74,0.00023514,2]
[312151907,1705669895645,-1155.38,0.00023514,2]
[312151908,1705669895656,-500.0,0.00023514,2]
[312151909,1705669895667,-500.0,0.00023514,2]
[312151910,1705669895678,-656.74,0.00023514,2]
[312151911,1705669895690,-1240.41,0.00023514,2]
[312151912,1705669895700,-1113.02,0.00023514,2]
[312151913,1705669895712,-594.85,0.00023514,2]
[312151914,1705669895723,-1108.53,0.00023514,2]
[312151915,1705669895734,-685.72,0.00023514,2]
[312151916,1705669895745,-2887.99,0.00023514,2]
[312151917,1705669895755,-1061.46,0.00023514,2]
[312151918,1705669895766,-2576.06,0.00023514,2]
[312151919,1705669895777,-884.86,0.00023514,2]
[312151920,1705669895789,-1444.68,0.00023514,2]
[312151921,1705669895803,-1400.48,0.00023514,2]
[312151922,1705669895814,-800.66,0.00023514,2]
[312151923,1705669895824,-718.12,0.00023514,2]
[312151924,1705669895837,-819.09,0.00023514,2]
[312151925,1705669895848,-1194.07,0.00023514,2]
[312151926,1705669895859,-1896.64,0.00023514,2]
[312151927,1705669895871,-1350.41,0.00023514,2]
[312151928,1705669895882,-1068.88,0.00023514,2]
[312151929,1705669895894,-905.24,0.00023514,2]
[312151930,1705669895905,-500.0,0.00023514,2]
[312151931,1705669895916,-1145.69,0.00023514,2]
[312151932,1705669895927,-502.2,0.00023514,2]
[312151933,1705669895940,-1504.96,0.00023514,2]
[312151934,1705669895951,-500.0,0.00023514,2]
[312151935,1705669895963,-1076.22,0.00023514,2]
[312151936,1705669895974,-1677.73,0.00023514,2]
[312151937,1705669895985,-455.75369225,0.00023515,2]
[312151938,1705669895996,-528.8725535,0.00023515,2]
[312151939,1705669896007,-500.0,0.00023515,2]
[312151940,1705669896019,-427.14499926,0.00023515,2]
[312151941,1705669896030,-500.0,0.00023515,2]
[312151942,1705669896041,-1117.22,0.00023516,2]
[312151943,1705669896052,-1117.22,0.00023516,2]
[312151944,1705669896063,-1117.22,0.00023516,2]
[312151945,1705669896074,-1117.22,0.00023516,2]
[312151946,1705669896085,-1117.3883226,0.00023516,2]
[312151947,1705669896096,-500.0,0.00023517,2]
[312151948,1705669896108,-657.2,0.00023517,2]
[312151949,1705669896119,-500.0,0.00023517,2]
[312151950,1705669896131,-500.0,0.00023517,2]
[312151951,1705669896142,-500.0,0.00023517,2]
[312151952,1705669896153,-500.0,0.00023517,2]
[312151953,1705669896163,-500.0,0.00023517,2]
[312151954,1705669896173,-570.75,0.00023517,2]
[312151955,1705669896183,-500.0,0.00023517,2]
[312151956,1705669896194,-582.99,0.00023517,2]
[312151957,1705669896205,-500.0,0.00023517,2]
[312151958,1705669896216,-500.0,0.00023517,2]
[312151959,1705669896227,-1449.11,0.00023517,2]
[312151960,1705669896238,-1134.6,0.00023517,2]
[312151961,1705669896248,-500.0,0.00023517,2]
[312151962,1705669896259,-598.69,0.00023517,2]
[312151963,1705669896269,-638.02,0.00023517,2]
[312151964,1705669896280,-500.0,0.00023517,2]
[312151965,1705669896291,-746.32,0.00023517,2]
[312151966,1705669896302,-532.01,0.00023517,2]
[312151967,1705669896313,-795.41,0.00023517,2]
[312151968,1705669896324,-500.0,0.00023517,2]
[312151969,1705669896335,-500.0,0.00023517,2]
[312151970,1705669896345,-500.0,0.00023517,2]
[312151971,1705669896356,-1341.46,0.00023517,2]
[312151972,1705669896369,-500.0,0.00023517,2]
[312151973,1705669896379,-500.0,0.00023517,2]
[312151974,1705669896390,-292.0907751,0.00023517,2]
[312151975,1705669896402,-555.25,0.00023517,2]
[312151976,1705669896413,-849.48,0.00023517,2]
[312151977,1705669896424,-500.0,0.00023517,2]
[312151978,1705669896435,-549.55,0.00023517,2]
[312151979,1705669896445,-1615.25,0.00023517,2]
[312151980,1705669896457,-688.47,0.00023517,2]
[312151981,1705669896468,-500.0,0.00023518,2]
[312151982,1705669896479,-500.0,0.00023518,2]
[312151983,1705669896490,-500.0,0.00023518,2]
[312151984,1705669896501,-1231.94,0.00023518,2]
[312151985,1705669896512,-500.0,0.00023518,2]
[312151986,1705669896523,-500.0,0.00023518,2]
[312151987,1705669896533,-680.51,0.00023518,2]
[312151988,1705669896544,-686.07,0.00023518,2]
[312151989,1705669896556,-500.0,0.00023518,2]
[312151990,1705669896567,-500.0,0.00023518,2]
[312151991,1705669896578,-500.0,0.00023518,2]
[312151992,1705669896589,-500.0,0.00023518,2]
[312151993,1705669896600,-500.65,0.00023518,2]
[312151994,1705669896611,-500.0,0.00023518,2]
[312151995,1705669896622,-500.0,0.00023518,2]
[312151996,1705669896637,-1025.0,0.00023518,2]
[312151997,1705669896649,-500.0,0.00023518,2]
[312151998,1705669896661,-500.0,0.00023518,2]
[312151999,1705669896673,-511.27,0.00023518,2]
[312152000,1705669896684,-622.13,0.00023518,2]
[312152001,1705669896695,-500.0,0.00023518,2]
[312152002,1705669896706,-500.0,0.0002356,2]
[312152003,1705669896717,-150.0,0.0002356,2]
[312152004,1705669896728,-500.0,0.00023561,2]
[312152005,1705669896739,-500.0,0.00023561,2]
[312152006,1705669896751,-500.0,0.00023561,2]
[312152007,1705669896761,-500.0,0.00023561,2]
[312152008,1705669896772,-500.0,0.00023561,2]
[312152009,1705669896783,-500.0,0.00023561,2]
[312152010,1705669896797,-500.0,0.00023561,2]
[312152011,1705669896808,-1166.14,0.00023561,2]
[312152012,1705669896818,-500.0,0.00023561,2]
[312152013,1705669896829,-636.19,0.00023561,2]
[312152014,1705669897165,-535.61,0.00023561,2]
[312152015,1705669897189,-500.0,0.00023561,2]
[312152016,1705669897200,-500.0,0.00023561,2]
[312152017,1705669897211,-500.0,0.00023561,2]
[312152018,1705669897221,-500.0,0.00023561,2]
[312152019,1705669897231,-881.3,0.00023561,2]
[312152020,1705669897242,-1150.15,0.00023561,2]
[312152021,1705669897253,-500.0,0.00023561,2]
[312152022,1705669897263,-500.0,0.00023561,2]
[312152023,1705669897273,-500.0,0.00023561,2]